fUST/lending_fUST_20250326
["ID","MTS","AMOUNT","RATE_DAILY","PERIOD"]
[356664178,1742932273984,-595.62763622,0.00011864,2]
[356664179,1742932307510,-2000.0,0.0001178,2]
[356664180,1742932608594,-302.18618189,0.0001178,2]
[356664181,1742932610234,-697.81381811,0.0001178,2]
[356664182,1742932611655,-302.18618189,0.00011862,2]
[356664183,1742932613110,-302.18618189,0.00011863,2]
[356664184,1742932698909,-395.62763622,0.00011862,2]
[356664185,1742932712898,-314.79887981,0.0001178,2]
[356664186,1742932714660,-1685.20112019,0.0001178,2]
[356664187,1742932742926,-300.0,0.0001178,2]
[356664188,1742932745760,-700.0,0.0001178,2]
[356664190,1742933041922,-158.25871196,0.00010926,2]
[356664191,1742933076679,-229.55763535,0.00010926,2]
[356664192,1742933083492,-218.49776043,0.00010926,2]
[356664193,1742933093137,-1306.18,0.00010926,2]
[356664194,1742933094594,-693.82,0.00010926,2]
[356664195,1742933106107,-300.0,0.00010926,2]
[356664196,1742933108706,-1700.0,0.00010926,2]
[356664197,1742933118953,-2000.0,0.00010926,2]
[356664200,1742933124705,-704.9886,0.00010926,2]
[356664205,1742933140144,-177.57121678,0.00010926,2]
[356664208,1742933152087,-198.30041947,0.00010926,2]
[356664209,1742933159078,-618.87,0.00010926,2]
[356664210,1742933159974,-1381.13,0.00010926,2]
[356664211,1742933165243,-300.0,0.00010926,2]
[356664212,1742933189358,-12.82565601,0.00010926,2]
[356664213,1742933224540,-181.31170915,0.00011857,2]
[356664214,1742933224573,-300.0,0.0001186,2]
[356664215,1742933224598,-314.79887981,0.00011861,2]
[356664216,1742933224626,-500.0,0.00011861,2]
[356664217,1742933224653,-297.18941104,0.00011861,2]
[356664218,1742933227136,-202.81058896,0.00011861,2]
[356664219,1742933235837,-164.97350521,0.00011861,2]
[356664222,1742933247744,-335.02649479,0.00011861,2]
[356664223,1742933247768,-500.0,0.00011861,2]
[356664224,1742933247793,-280.02753052,0.00011861,2]
[356664225,1742933247822,-500.0,0.00011861,2]
[356664226,1742933247846,-312.90646886,0.00011861,2]
[356664227,1742933257782,-187.09353114,0.00011861,2]
[356664228,1742933257806,-402.87646886,0.00011861,2]
[356664229,1742933262194,-97.12353114,0.00011861,2]
[356664230,1742933262216,-438.93646886,0.00011861,2]
[356664233,1742933277853,-61.06353114,0.00011861,2]
[356664234,1742933277877,-183.96653412,0.00011861,2]
[356664235,1742933277899,-136.77762126,0.00011861,2]
[356664236,1742933278889,-492.16231348,0.00011861,2]
[356664237,1742933283184,-300.0,0.0001186,2]
[356664238,1742933286881,-500.0,0.00011861,2]
[356664239,1742933289462,-181.31170913,0.00011855,2]
[356664240,1742933289484,-756.73007495,0.00011861,2]
[356664241,1742933296930,-152.67,0.00011861,2]
[356664242,1742933304389,-300.0,0.00011861,2]
[356664247,1742933374825,-264.2396,0.0001186,2]
[356664248,1742933380067,-159.91830583,0.0001186,2]
[356664249,1742933397071,-75.84209417,0.0001186,2]
[356664250,1742933397095,-224.15790583,0.0001186,2]
[356664251,1742933403649,-150.0,0.0001186,2]
[356664252,1742933404218,-150.0,0.0001186,2]
[356664306,1742933432883,-1807.6,0.0001186,2]
[356664308,1742933432892,-516.02,0.0001186,2]
[356664310,1742933432901,-300.0,0.0001186,2]
[356664312,1742933432910,-500.0,0.0001186,2]
[356664314,1742933432919,-500.0,0.0001186,2]
[356664316,1742933432929,-500.0,0.0001186,2]
[356664318,1742933432938,-500.0,0.0001186,2]
[356664320,1742933432948,-183.37104806,0.0001186,2]
[356664322,1742933432958,-1593.3,0.00011861,2]
[356664324,1742933432967,-500.0,0.00011861,2]
[356664326,1742933432978,-500.0,0.00011861,2]
[356664328,1742933432988,-604.75,0.00011861,2]
[356664330,1742933432997,-2122.72,0.00011861,2]
[356664332,1742933433006,-589.97,0.00011861,2]
[356664334,1742933433015,-536.06,0.00011861,2]
[356664336,1742933433024,-762.89,0.00011861,2]
[356664338,1742933433034,-500.0,0.00011861,2]
[356664340,1742933433043,-381.80768652,0.00011861,2]
[356664342,1742933433053,-500.0,0.00011861,2]
[356664344,1742933433063,-500.0,0.00011861,2]
[356664346,1742933433072,-500.0,0.00011861,2]
[356664347,1742933433081,-4722.9,0.00011861,2]
[356664349,1742933433092,-4016.98,0.00011861,2]
[356664351,1742933433101,-1306.18,0.00011861,2]
[356664353,1742933433111,-500.0,0.00011861,2]
[356664356,1742933433122,-1346.74,0.00011861,2]
[356664357,1742933433132,-1268.77,0.00011861,2]
[356664358,1742933433142,-1162.84,0.00011861,2]
[356664359,1742933433152,-500.0,0.00011861,2]
[356664360,1742933433162,-556.68,0.00011861,2]
[356664361,1742933433172,-27.49852921,0.00011861,2]
[356664388,1742933438700,-500.0,0.0001186,2]
[356664389,1742933438710,-552.95147079,0.00011861,2]
[356664390,1742933438720,-857.15,0.00011861,2]
[356664391,1742933438730,-618.87,0.00011861,2]
[356664392,1742933438739,-500.0,0.00011861,2]
[356664393,1742933438748,-2580.62,0.00011861,2]
[356664394,1742933438758,-302.72251256,0.00011861,2]
[356664425,1742933440967,-282.59748744,0.00011861,2]
[356664426,1742933440977,-4777.13,0.00011861,2]
[356664427,1742933440986,-575.08,0.00011861,2]
[356664428,1742933440996,-734.37,0.00011861,2]
[356664429,1742933441006,-872.07,0.00011861,2]
[356664430,1742933441015,-68314.69750878,0.00011862,2]
[356664459,1742933443922,-777.84,0.00010959,2]
[356664460,1742933443932,-562.97,0.00011861,2]
[356664461,1742933443942,-2032.77593774,0.00011862,2]
[356664474,1742933445776,-6424.48046282,0.00011862,2]
[356664475,1742933445831,-2045.60000001,0.00011862,2]
[356664476,1742933445844,-1306.51452931,0.00011862,2]
[356664477,1742933445954,-47.07973534,0.00011862,2]
[356664481,1742934066105,-172.863905,0.00010892,2]
[356664495,1742934548171,-259.86469174,0.00010783,2]
[356664496,1742934548191,-166.46000024,0.00010892,2]
[356664500,1742934563192,-133.53999976,0.00010892,2]
[356664501,1742934563214,-17087.35344882,0.00010893,2]
[356664502,1742934566299,-170.84251529,0.00010893,2]
[356664503,1742934572123,-165.6788,0.00010893,2]
[356664504,1742934572150,-29.56037609,0.00010893,2]
[356664508,1742934604187,161.37302391,0.0001001,2]
[356664509,1742934604226,1147.56697609,0.0001001,2]
[356664553,1742934632075,-151.0,0.00011754,2]
[356664555,1742934632085,-399.0,0.00011754,2]
[356664561,1742934632678,-291.426376,0.00011754,2]
[356664562,1742934635163,-150.0,0.00011754,2]
[356664574,1742934637901,-159.573624,0.00011754,2]
[356664575,1742934637910,-1200.0,0.00011754,2]
[356664576,1742934637920,-300.0,0.00011757,2]
[356664577,1742934637929,-3849.61,0.00011758,2]
[356664578,1742934637938,-1251.75,0.00011758,2]
[356664579,1742934637947,-500.0,0.00011758,2]
[356664580,1742934637957,-500.0,0.00011758,2]
[356664581,1742934637966,-3525.22,0.00011758,2]
[356664582,1742934637976,-599.38,0.00011758,2]
[356664583,1742934637985,-500.0,0.00011758,2]
[356664584,1742934637995,-2473.09,0.00011758,2]
[356664585,1742934638005,-500.0,0.00011758,2]
[356664586,1742934638014,-543.93512739,0.00011758,2]
[356664587,1742934638023,-500.0,0.00011758,2]
[356664588,1742934638033,-175.07150576,0.00011758,2]
[356664589,1742934638042,-500.0,0.00011758,2]
[356664590,1742934638050,-152.67,0.00011758,2]
[356664591,1742934638059,-225.71212175,0.00011758,2]
[356664592,1742934638069,-500.0,0.00011759,2]
[356664593,1742934638078,-1526.91,0.00011759,2]
[356664594,1742934638088,-579.55,0.00011759,2]
[356664595,1742934638097,-2034.27,0.00011759,2]
[356664596,1742934638106,-500.0,0.00011759,2]
[356664597,1742934638115,-565.39,0.00011759,2]
[356664598,1742934638124,-731.1,0.00011759,2]
[356664599,1742934638133,-513.73,0.00011759,2]
[356664600,1742934638142,-500.0,0.00011759,2]
[356664601,1742934638152,-500.0,0.00011759,2]
[356664602,1742934638161,-500.0,0.00011759,2]
[356664603,1742934638170,-4526.11,0.00011759,2]
[356664604,1742934638179,-500.0,0.00011759,2]
[356664605,1742934638188,-500.0,0.00011759,2]
[356664606,1742934638197,-1290.62,0.00011759,2]
[356664607,1742934638207,-1215.9,0.00011759,2]
[356664608,1742934638216,-1114.38,0.00011759,2]
[356664609,1742934638225,-533.48,0.00011759,2]
[356664610,1742934638234,-556.27,0.00011759,2]
[356664611,1742934638243,-1107.16,0.00011759,2]
[356664612,1742934638252,-500.0,0.00011759,2]
[356664613,1742934638261,-560.94,0.00011759,2]
[356664614,1742934638270,-4578.08,0.00011759,2]
[356664615,1742934638279,-838.66,0.00011759,2]
[356664616,1742934638289,-551.92629838,0.00011759,2]
[356664617,1742934638301,-151.84370162,0.00011759,2]
[356664618,1742934638310,-835.74,0.00011759,2]
[356664619,1742934638319,-539.52,0.00011759,2]
[356664620,1742934638328,-500.0,0.0001176,2]
[356664621,1742934638337,-500.0,0.0001176,2]
[356664622,1742934638346,-500.0,0.0001176,2]
[356664623,1742934638355,-500.0,0.0001176,2]
[356664624,1742934638365,-500.0,0.0001176,2]
[356664625,1742934638374,-500.0,0.0001176,2]
[356664626,1742934638383,-500.0,0.0001176,2]
[356664627,1742934638392,-647.74742561,0.0001176,2]
[356664628,1742934638402,-500.0,0.0001176,2]
[356664629,1742934638412,-500.0,0.0001176,2]
[356664630,1742934638421,-500.0,0.0001176,2]
[356664631,1742934638430,-500.0,0.0001176,2]
[356664632,1742934638439,-500.0,0.0001176,2]
[356664633,1742934638458,-500.0,0.0001176,2]
[356664634,1742934638469,-1913.76,0.0001176,2]
[356664635,1742934638479,-600.51,0.0001176,2]
[356664636,1742934638488,-500.0,0.0001176,2]
[356664637,1742934638498,-500.0,0.0001176,2]
[356664638,1742934638507,-500.0,0.0001176,2]
[356664639,1742934638517,-500.0,0.0001176,2]
[356664640,1742934638527,-335.3507106,0.0001176,2]
[356664641,1742934638537,-194.33345902,0.0001176,2]
[356664642,1742934638546,-4561.73981779,0.00011761,2]
[356664643,1742934638634,-804.45381734,0.00011761,2]
[356664644,1742934638647,-11607.56374568,0.00011761,2]
[356664645,1742934638659,-677.41019514,0.00011761,2]
[356664646,1742934638670,-777.84,0.00011761,2]
[356664647,1742934638681,-539.84621936,0.00011761,2]
[356664648,1742934638693,-991.16467886,0.00011761,2]
[356664649,1742934638705,-20157.44980035,0.00011761,2]
[356664659,1742934640285,-791.3323053,0.00011761,2]
[356664660,1742934640296,-423.16002039,0.00011761,2]
[356664661,1742934640345,-426.72429468,0.00011761,2]
[356664662,1742934640357,-3550.62696982,0.00011761,2]
[356664663,1742934640372,-4741.464556,0.00011761,2]
[356664690,1742935628218,-172.863907,0.00010959,2]
[356664691,1742935628240,-173.43617984,0.00011656,2]
[356664692,1742935745770,-196.4098005,0.00010731,2]
[356664693,1742935749124,-1394.81251908,0.00010731,2]
[356664700,1742935832164,-42.00007142,0.00010731,2]
[356664701,1742935832177,-151.0,0.00011651,2]
[356664702,1742935832189,-600.0,0.00011651,2]
[356664703,1742935832202,-300.0,0.00011655,2]
[356664704,1742935832214,-500.0,0.00011656,2]
[356664705,1742935832229,-5508.75,0.00011656,2]
[356664706,1742935832240,-1634.3,0.00011656,2]
[356664707,1742935832252,-500.0,0.00011656,2]
[356664708,1742935832263,-500.0,0.00011656,2]
[356664709,1742935832274,-4108.16,0.00011656,2]
[356664710,1742935832285,-721.09,0.00011656,2]
[356664711,1742935832296,-500.0,0.00011656,2]
[356664712,1742935832308,-596.73,0.00011656,2]
[356664713,1742935832319,-3194.26,0.00011656,2]
[356664714,1742935832331,-500.0,0.00011656,2]
[356664715,1742935832342,-500.0,0.00011656,2]
[356664716,1742935832353,-584.74549742,0.00011656,2]
[356664717,1742935832365,-500.0,0.00011657,2]
[356664718,1742935832377,-500.0,0.00011657,2]
[356664719,1742935832388,-500.0,0.00011657,2]
[356664720,1742935832400,-500.0,0.00011657,2]
[356664721,1742935832412,-500.0,0.00011657,2]
[356664722,1742935832424,-500.0,0.00011657,2]
[356664723,1742935832435,-500.0,0.00011657,2]
[356664724,1742935832447,-2286.76,0.00011657,2]
[356664725,1742935832459,-641.02,0.00011657,2]
[356664726,1742935832470,-500.0,0.00011657,2]
[356664727,1742935832484,-500.0,0.00011657,2]
[356664728,1742935832495,-500.0,0.00011657,2]
[356664729,1742935832507,-2813.88,0.00011657,2]
[356664730,1742935832518,-500.0,0.00011657,2]
[356664731,1742935832530,-849.36,0.00011657,2]
[356664732,1742935832542,-500.0,0.00011657,2]
[356664733,1742935832553,-652.47,0.00011657,2]
[356664734,1742935832568,-500.0,0.00011657,2]
[356664735,1742935832577,-500.0,0.00011657,2]
[356664736,1742935832587,-500.0,0.00011657,2]
[356664737,1742935832597,-1006.61,0.00011657,2]
[356664738,1742935832606,-500.0,0.00011657,2]
[356664739,1742935832831,-500.0,0.00011657,2]
[356664740,1742935832854,-500.0,0.00011657,2]
[356664741,1742935832864,-500.0,0.00011657,2]
[356664742,1742935832874,-523.51,0.00011657,2]
[356664743,1742935832883,-500.0,0.00011657,2]
[356664744,1742935832893,-7111.88,0.00011657,2]
[356664745,1742935832903,-500.0,0.00011657,2]
[356664746,1742935832912,-500.0,0.00011657,2]
[356664747,1742935832922,-500.0,0.00011657,2]
[356664748,1742935832931,-500.0,0.00011657,2]
[356664749,1742935832940,-500.0,0.00011657,2]
[356664750,1742935832951,-500.0,0.00011657,2]
[356664751,1742935832961,-1807.5,0.00011657,2]
[356664752,1742935832971,-1687.75,0.00011657,2]
[356664753,1742935832983,-1407.95,0.00011657,2]
[356664754,1742935832994,-404.38077643,0.00011657,2]
[356664755,1742935833005,-692.43,0.00011657,2]
[356664756,1742935833015,-500.0,0.00011657,2]
[356664757,1742935833024,-677.34,0.00011657,2]
[356664758,1742935833035,-1304.6,0.00011657,2]
[356664759,1742935833044,-500.0,0.00011657,2]
[356664760,1742935833053,-500.0,0.00011657,2]
[356664761,1742935833063,-500.0,0.00011657,2]
[356664762,1742935833074,-680.64,0.00011657,2]
[356664763,1742935833085,-7586.32,0.00011657,2]
[356664764,1742935833095,-500.0,0.00011657,2]
[356664765,1742935833105,-219596.46586921,0.00011658,2]
[356664766,1742935833115,-622.2,0.00011706,2]
[356664767,1742935833125,-500.0,0.00011756,2]
[356664768,1742935833136,-500.0,0.00011756,2]
[356664769,1742935833146,-500.0,0.00011756,2]
[356664770,1742935833155,-520.08,0.00011756,2]
[356664771,1742935833166,-263.06776217,0.00011756,2]
[356664772,1742935833176,-161.73756214,0.00011756,2]
[356664773,1742935833186,-500.0,0.00011756,2]
[356664774,1742935833195,-500.0,0.00011756,2]
[356664775,1742935833204,-500.0,0.00011756,2]
[356664776,1742935833214,-500.0,0.00011756,2]
[356664777,1742935833224,-230.37071245,0.00011756,2]
[356664778,1742935833234,-529.28,0.00011756,2]
[356664779,1742935833243,-351.44258151,0.00011756,2]
[356664780,1742935833253,-500.0,0.00011756,2]
[356664781,1742935833263,-500.0,0.00011756,2]
[356664782,1742935833272,-500.0,0.00011756,2]
[356664783,1742935833282,-836.31,0.00011756,2]
[356664784,1742935833292,-500.0,0.00011756,2]
[356664785,1742935833302,-500.0,0.00011756,2]
[356664786,1742935833311,-500.0,0.00011756,2]
[356664787,1742935833321,-500.0,0.00011756,2]
[356664788,1742935833331,-500.0,0.00011756,2]
[356664789,1742935833340,-500.0,0.00011756,2]
[356664790,1742935833350,-500.0,0.00011756,2]
[356664791,1742935833361,-500.0,0.00011756,2]
[356664792,1742935833371,-500.0,0.00011756,2]
[356664793,1742935833380,-500.0,0.00011756,2]
[356664794,1742935833390,-500.0,0.00011756,2]
[356664795,1742935833399,-500.0,0.00011756,2]
[356664796,1742935833409,-500.0,0.00011756,2]
[356664797,1742935833419,-500.0,0.00011756,2]
[356664798,1742935833429,-500.0,0.00011756,2]
[356664799,1742935833439,-500.0,0.00011756,2]
[356664800,1742935833449,-500.0,0.00011756,2]
[356664801,1742935833459,-500.0,0.00011756,2]
[356664802,1742935833468,-500.0,0.00011756,2]
[356664803,1742935833479,-500.0,0.00011756,2]
[356664804,1742935833490,-500.0,0.00011756,2]
[356664805,1742935833499,-500.0,0.00011756,2]
[356664806,1742935833509,-569.86,0.00011756,2]
[356664807,1742935833519,-500.0,0.00011756,2]
[356664808,1742935833528,-500.0,0.00011756,2]
[356664809,1742935833538,-500.0,0.00011756,2]
[356664810,1742935833547,-500.0,0.00011756,2]
[356664811,1742935833557,-1098.74,0.00011756,2]
[356664812,1742935833566,-500.0,0.00011756,2]
[356664813,1742935833575,-500.0,0.00011756,2]
[356664814,1742935833585,-1057.52,0.00011756,2]
[356664815,1742935833594,-500.0,0.00011756,2]
[356664816,1742935833603,-500.0,0.00011756,2]
[356664817,1742935833613,-799.11,0.00011756,2]
[356664818,1742935833622,-500.0,0.00011756,2]
[356664819,1742935833632,-1165.11,0.00011756,2]
[356664820,1742935833641,-1453.93,0.00011756,2]
[356664821,1742935833651,-3113.7,0.00011756,2]
[356664822,1742935833661,-3954.09,0.00011756,2]
[356664823,1742935833670,-500.0,0.00011756,2]
[356664824,1742935833680,-500.0,0.00011756,2]
[356664825,1742935833690,-500.0,0.00011756,2]
[356664826,1742935833700,-722.36,0.00011756,2]
[356664827,1742935833710,-522.52,0.00011756,2]
[356664828,1742935833720,-500.0,0.00011756,2]
[356664829,1742935833730,-863.802533,0.00011756,2]
[356664830,1742935833740,-863.802533,0.00011756,2]
[356664831,1742935833750,-863.802533,0.00011756,2]
[356664832,1742935833760,-863.802533,0.00011756,2]
[356664833,1742935833770,-2830.7,0.00011756,2]
[356664834,1742935833780,-500.0,0.00011756,2]
[356664835,1742935833790,-807.67,0.00011756,2]
[356664836,1742935833799,-31995.65876522,0.00011756,2]
[356664837,1742935833813,-74306.04123478,0.00011756,2]
[356664838,1742935833823,-500.0,0.00011756,2]
[356664839,1742935833833,-3031.52,0.00011756,2]
[356664840,1742935833843,-500.0,0.00011756,2]
[356664841,1742935833862,-500.0,0.00011756,2]
[356664842,1742935833875,-1123.9,0.00011756,2]
[356664843,1742935833886,-500.0,0.00011756,2]
[356664844,1742935833896,-500.0,0.00011756,2]
[356664845,1742935833906,-938.53,0.00011756,2]
[356664846,1742935833917,-500.0,0.00011756,2]
[356664847,1742935833927,-500.0,0.00011756,2]
[356664848,1742935833937,-1084.99,0.00011756,2]
[356664849,1742935833948,-500.0,0.00011756,2]
[356664850,1742935833958,-500.0,0.00011756,2]
[356664851,1742935833970,-1213.38,0.00011756,2]
[356664852,1742935833982,-4346.59,0.00011756,2]
[356664853,1742935833994,-500.0,0.00011756,2]
[356664854,1742935834008,-1355.47,0.00011756,2]
[356664855,1742935834019,-500.0,0.00011756,2]
[356664856,1742935834030,-1338.48,0.00011756,2]
[356664857,1742935834041,-863.802533,0.00011757,2]
[356664858,1742935834052,-863.802533,0.00011757,2]
[356664859,1742935834063,-500.0,0.00011758,2]
[356664860,1742935834074,-500.0,0.00011758,2]
[356664861,1742935834088,-500.0,0.00011758,2]
[356664862,1742935834099,-500.0,0.00011758,2]
[356664863,1742935834110,-500.0,0.00011758,2]
[356664864,1742935834122,-500.0,0.00011758,2]
[356664865,1742935834133,-500.0,0.00011758,2]
[356664866,1742935834143,-500.0,0.00011758,2]
[356664867,1742935834154,-500.0,0.00011758,2]
[356664868,1742935834165,-500.0,0.00011758,2]
[356664869,1742935834175,-194.83,0.00011758,2]
[356664870,1742935834186,-500.0,0.00011758,2]
[356664871,1742935834197,-500.0,0.00011758,2]
[356664872,1742935834207,-556.44,0.00011758,2]
[356664873,1742935834218,-500.0,0.00011758,2]
[356664874,1742935834230,-500.0,0.00011758,2]
[356664875,1742935834240,-338.92498335,0.00011758,2]
[356664876,1742935834251,-500.0,0.00011758,2]
[356664877,1742935834261,-500.0,0.00011758,2]
[356664878,1742935834272,-500.0,0.00011758,2]
[356664879,1742935834282,-636.54,0.00011758,2]
[356664880,1742935834292,-500.0,0.00011758,2]
[356664881,1742935834302,-500.0,0.00011758,2]
[356664882,1742935834312,-679.68,0.00011758,2]
[356664883,1742935834322,-500.0,0.00011758,2]
[356664884,1742935834332,-597.95,0.00011758,2]
[356664885,1742935834343,-500.0,0.00011758,2]
[356664886,1742935834353,-1184.12,0.00011758,2]
[356664887,1742935834363,-500.0,0.00011758,2]
[356664888,1742935834373,-613.36,0.00011758,2]
[356664889,1742935834383,-500.0,0.00011758,2]
[356664890,1742935834393,-532.61,0.00011758,2]
[356664891,1742935834405,-500.0,0.00011758,2]
[356664892,1742935834415,-500.0,0.00011758,2]
[356664893,1742935834426,-500.0,0.00011758,2]
[356664894,1742935834436,-500.0,0.00011758,2]
[356664895,1742935834447,-500.0,0.00011758,2]
[356664896,1742935834458,-500.0,0.00011758,2]
[356664897,1742935834468,-500.0,0.00011758,2]
[356664898,1742935834479,-614.44,0.00011758,2]
[356664899,1742935834490,-500.0,0.00011758,2]
[356664900,1742935834499,-500.0,0.00011758,2]
[356664901,1742935834509,-500.0,0.00011758,2]
[356664902,1742935834519,-761.91,0.00011758,2]
[356664903,1742935834530,-1221.17,0.00011758,2]
[356664904,1742935834540,-500.0,0.00011758,2]
[356664905,1742935834550,-500.0,0.00011758,2]
[356664906,1742935834560,-1058.65,0.00011758,2]
[356664907,1742935834570,-2809.39,0.00011758,2]
[356664908,1742935834580,-500.0,0.00011758,2]
[356664909,1742935834590,-500.0,0.00011758,2]
[356664910,1742935834600,-322.98844371,0.00011758,2]
[356664911,1742935834610,-500.0,0.00011758,2]
[356664912,1742935834620,-500.0,0.00011758,2]
[356664913,1742935834630,-500.0,0.00011758,2]
[356664914,1742935834641,-500.0,0.00011758,2]
[356664915,1742935834650,-500.0,0.00011758,2]
[356664916,1742935834661,-500.0,0.00011758,2]
[356664917,1742935834671,-500.0,0.00011758,2]
[356664918,1742935834680,-500.0,0.00011758,2]
[356664919,1742935834690,-239.70886531,0.00011758,2]
[356664920,1742935834700,-500.0,0.00011758,2]
[356664921,1742935834710,-500.0,0.00011758,2]
[356664922,1742935834720,-659.06,0.00011758,2]
[356664923,1742935834730,-500.0,0.00011758,2]
[356664924,1742935834740,-500.0,0.00011758,2]
[356664925,1742935834750,-500.0,0.00011758,2]
[356664926,1742935834760,-500.0,0.00011758,2]
[356664927,1742935834770,-500.0,0.00011758,2]
[356664928,1742935834781,-863.802533,0.00011758,2]
[356664929,1742935834790,-863.802533,0.00011758,2]
[356664930,1742935834800,-863.802533,0.00011758,2]
[356664931,1742935834810,-863.802533,0.00011758,2]
[356664932,1742935834819,-863.802533,0.00011758,2]
[356664933,1742935834829,-863.802533,0.00011758,2]
[356664934,1742935834838,-645.2214,0.00011761,2]
[356664935,1742935834848,-500.0,0.00011773,2]
[356664936,1742935834857,-500.0,0.00011773,2]
[356664937,1742935834867,-500.0,0.00011773,2]
[356664938,1742935834877,-552.73632071,0.00011773,2]
[356664939,1742935834887,-500.0,0.00011773,2]
[356664940,1742935834897,-500.0,0.00011773,2]
[356664941,1742935834906,-501.12466227,0.00011773,2]
[356664942,1742935834919,-500.0,0.00011773,2]
[356664943,1742935834929,-500.0,0.00011773,2]
[356664944,1742935834939,-500.24236722,0.00011773,2]
[356664945,1742935834948,-260.4111706,0.00011773,2]
[356664946,1742935834958,-500.0,0.00011773,2]
[356664947,1742935834969,-500.0,0.00011773,2]
[356664948,1742935834979,-500.0,0.00011773,2]
[356664949,1742935834989,-500.72457754,0.00011773,2]
[356664950,1742935835000,-403.36680775,0.00011773,2]
[356664951,1742935835012,-500.0,0.00011773,2]
[356664952,1742935835021,-500.0,0.00011773,2]
[356664953,1742935835031,-500.0,0.00011773,2]
[356664954,1742935835043,-159.59681154,0.00011773,2]
[356664955,1742935835053,-185.23982911,0.00011773,2]
[356664956,1742935835063,-500.0,0.00011773,2]
[356664957,1742935835073,-500.0,0.00011773,2]
[356664958,1742935835084,-573.03127866,0.00011773,2]
[356664959,1742935835094,-500.0,0.00011773,2]
[356664960,1742935835104,-500.0,0.00011773,2]
[356664961,1742935835113,-500.5160555,0.00011773,2]
[356664962,1742935835123,-500.0,0.00011773,2]
[356664963,1742935835133,-500.0,0.00011773,2]
[356664964,1742935835142,-465.5464818,0.00011773,2]
[356664965,1742935835152,-500.0,0.00011773,2]
[356664966,1742935835162,-500.0,0.00011773,2]
[356664967,1742935835172,-420.67002841,0.00011773,2]
[356664968,1742935835181,-501.71725763,0.00011773,2]
[356664969,1742935835191,-500.0,0.00011773,2]
[356664970,1742935835201,-500.0,0.00011773,2]
[356664971,1742935835210,-500.0,0.00011773,2]
[356664972,1742935835219,-584.29030598,0.00011773,2]
[356664973,1742935835230,-863.802533,0.00011773,2]
[356664974,1742935835239,-863.802533,0.00011773,2]
[356664975,1742935835249,-152.0,0.00011799,2]
[356664976,1742935835259,-669.0945918,0.00011816,2]
[356664977,1742935835269,-693.8510917,0.00011871,2]
[356664978,1742935835278,-319.32601061,0.00011898,2]
[356664979,1742935835287,-719.52358209,0.00011926,2]
[356664980,1742935835297,-500.0,0.0001193,2]
[356664981,1742935835307,-5508.75,0.0001193,2]
[356664982,1742935835316,-1634.3,0.0001193,2]
[356664983,1742935835326,-500.0,0.0001193,2]
[356664984,1742935835336,-500.0,0.0001193,2]
[356664985,1742935835345,-4108.16,0.0001193,2]
[356664986,1742935835354,-721.09,0.0001193,2]
[356664987,1742935835364,-500.0,0.0001193,2]
[356664988,1742935835373,-3194.26,0.0001193,2]
[356664989,1742935835383,-596.73,0.0001193,2]
[356664990,1742935835393,-500.0,0.0001193,2]
[356664991,1742935835402,-500.0,0.0001193,2]